[Event "1st Festival Galdar 2024"]
[Site "?"]
[Date "2024.09.03"]
[Round "2.1"]
[White "Stefansson, Vignir Vatnar"]
[Black "Hernandez Leon, Alberto"]
[Result "1-0"]
[Annotator "TA"]
[ECO "E05"]
[WhiteElo "2531"]
[BlackElo "2233"]
[PlyCount "89"]
[EventDate "2024.09.02"]
[EventType "swiss"]
[SourceTitle "playchess.com"]
[Source "ChessBase"]
[SourceQuality "1"]
[TimeControl "5400+30"]

{[%evp 18,89,55,41,58,8,27,23,46,18,47,33,50,49,49,29,43,29,30,17,10,0,27,0,8,-5,-6,0,0,-24,-18,-15,-27,-28,-27,-45,-18,-34,-17,-20,-18,-28,0,-6,0,0,0,0,0,0,0,-20,0,0,0,0,0,0,0,0,0,0,293,163,294,278,293,0,29980,29981,29982,29976,29978,29979]} 1. d4 {[%emt 0:00:02]} Nf6 {[%emt 0:00:21]} 2. c4 {[%emt 0:00:09]} e6 {[%emt 0:00:10]} 3. Nf3 {[%emt 0:00:27]} d5 {[%emt 0:00:20]} 4. g3 {[%emt 0:02:45]} Be7 {[%emt 0:00:37]} 5. Bg2 {[%emt 0:00:07]} O-O {[%emt 0:00:27]} 6. Nc3 {[%emt 0:00:05]} dxc4 {[%emt 0:02:50]} 7. Ne5 {[%emt 0:00:23]} c5 {[%emt 0:05:05]} 8. dxc5 {[%emt 0:00:26]} Qc7 {[%emt 0:02:26]} 9. Nxc4 {[%emt 0:00:52]} Bxc5 {[%emt 0:03:14]} 10. O-O {[%emt 0:00:31]} Rd8 {[%emt 0:04:06]} 11. Qa4 {[%emt 0:05:23]} ({Better is} 11. Bf4 $14 Qe7 (11... Bxf2+ 12. Kxf2 e5 13. Nb5 $16) 12. Qc2) 11... Bd7 {[%emt 0:06:16]} 12. Bf4 {[%emt 0:04:12]} Qc8 {[%emt 0:04:54] White has an edge.} 13. Qb3 {[%emt 0:00:33]} Bc6 {[%emt 0:00:45]} 14. e4 {[%emt 0:01:14]} b6 {[%emt 0:06:25]} 15. Rad1 {[%emt 0:11:01]} Nbd7 {[%emt 0:08:17]} 16. Nd6 {[%emt 0:09:07]} Bxd6 {[%emt 0:00:19]} 17. Bxd6 {[%emt 0:00:06]} Qb7 {[%emt 0:00:23][%cal Rf6e4]} 18. Qc2 {[%emt 0:03:14]} b5 {[%emt 0:05:08]} 19. Rd4 {[%emt 0:03:41]} a5 {[%emt 0:10:52]} 20. a3 {[%emt 0:02:45]} Nb6 {[%emt 0:02:57]} 21. b3 {[%emt 0:11:48] [#] Prevents Nc4} (21. Rfd1 {with more complications.} Nc4 22. a4 Rxd6 23. axb5 Rxd4 24. Rxd4 Ne5 25. bxc6 Nxc6 26. e5) 21... b4 $1 {[%emt 0:05:54]} 22. axb4 {[%emt 0:00:36]} axb4 {[%emt 0:00:06]} 23. Ne2 {[%emt 0:01:00][%cal Of1d1] [#]} (23. Na2 {is more complex.} Bxe4 24. Rxe4 Nxe4 25. Bxe4 Rxa2 26. Bxh7+ Kh8 27. Qxa2 Rxd6 28. Qc2) 23... Nxe4 $1 {[%emt 0:17:07]} 24. Bxe4 {[%emt 0:15:45]} Bxe4 {[%emt 0:00:18]} 25. Rxe4 {[%emt 0:00:05]} Rxd6 {[%emt 0:00:20]} 26. Rxb4 {[%emt 0:00:05]} Qd7 {[%emt 0:02:07]} 27. Nf4 {[%emt 0:01:55]} Rc8 {[%emt 0:05:05]} 28. Qb2 {[%emt 0:01:43]} g6 {[%emt 0:03:52]} 29. Qe5 {[%emt 0:04:08]} Nd5 {[%emt 0:01:39]} 30. Rc4 {[%emt 0:03:09]} Rxc4 {[%emt 0:00:25]} 31. bxc4 {[%emt 0:00:12]} Nxf4 {[%emt 0:00:04]} 32. Qxf4 $11 {[%emt 0:00:03][%mdl 4096] Endgame. KQR-KQR} Rd4 {[%emt 0:00:08]} 33. Qb8+ {[%emt 0:00:04]} Qd8 {[%emt 0:01:34]} 34. Qb5 {[%emt 0:00:26]} Qd7 {[%emt 0:01:00]} 35. Rb1 {[%emt 0:01:44]} Rd1+ {[%emt 0:00:02]} 36. Rxd1 {[%emt 0:00:11]} Qxd1+ {[%emt 0:00:04] KQ-KQ} 37. Kg2 {[%emt 0:00:03]} Qe2 {[%emt 0:00:47]} 38. Qc6 {[%emt 0:00:11]} Kg7 {[%emt 0:01:43]} 39. c5 {[%emt 0:01:52][%cal Bc4c5,Bc5c6][%mdl 32]} e5 $2 {[%emt 0:00:02][%mdl 8192]} (39... Qe5 $11 {and Black is okay.}) 40. Qd5 $18 {[%emt 0:00:50] Strongly threatening c6.} e4 {[%emt 0:01:06][%cal Be5e4,Be4e3][%mdl 32]} 41. c6 {[%emt 0:00:34]} Qc2 {[%emt 0:00:23]} 42. Qe5+ $2 {[%emt 0:00:10]} (42. Qd4+ $18 Kh6 43. Qb6) 42... f6 $2 {[%emt 0:01:10][%mdl 8192]} (42... Kg8 $11) 43. Qe7+ {[%emt 0:00:09] White mates.} Kh6 {[%emt 0:00:04]} 44. Qxf6 {[%emt 0:00:52]} e3 {[%emt 0:00:06]} 45. Qf8+ {[%emt 0:00:15] Weighted Error Value: White=0.17 (very precise) /Black=0.38.  Loses game:     	---       	Black=2      Missed win:     	White=1     	---        Mistake:       	White=1     	---        Inaccurate:     	White=2     	Black=3      OK:         	White=8     	Black=9      Best:        	White=3     	Black=1      Brilliant:      	---       	Black=1} 1-0

[Event "1st Festival Galdar 2024"]
[Site "?"]
[Date "2024.09.03"]
[Round "2.2"]
[White "Mamani Beltran, Deniman"]
[Black "Arizmendi Martinez, Julen Luis"]
[Result "1/2-1/2"]
[Annotator "TA"]
[ECO "C01"]
[WhiteElo "2229"]
[BlackElo "2517"]
[PlyCount "65"]
[EventDate "2024.09.02"]
[EventType "swiss"]
[SourceTitle "playchess.com"]
[Source "ChessBase"]
[SourceQuality "1"]
[TimeControl "5400+30"]

{[%evp 14,65,31,18,20,15,22,18,21,17,12,16,7,16,25,19,26,34,24,7,14,13,14,11,26,21,19,8,11,18,21,30,29,29,33,27,40,0,0,0,0,0,0,0,0,0,0,0,0,0,0,0,0,-507]} 1. e4 {[%emt 0:00:13]} e6 {[%emt 0:01:09]} 2. d4 {[%emt 0:00:23]} d5 {[%emt 0:00:07]} 3. exd5 {[%emt 0:01:02]} exd5 {[%emt 0:00:07]} 4. Nf3 {[%emt 0:00:09]} Nf6 {[%emt 0:02:50]} 5. Bd3 {[%emt 0:00:07]} c5 {[%emt 0:00:10][%cal Bc7c5,Bc5c4][%mdl 32]} 6. O-O {[%emt 0:00:24]} c4 {[%emt 0:00:15]} 7. Re1+ {[%emt 0:01:51]} Be7 {[%emt 0:00:08]} 8. Bf1 {[%emt 0:00:10]} O-O {[%emt 0:00:14]} 9. b3 {[%emt 0:00:35]} cxb3 {[%emt 0:01:12]} 10. axb3 {[%emt 0:01:26]} Nc6 {[%emt 0:00:17]} 11. Bd3 {[%emt 0:07:52]} Bg4 {[%emt 0:04:11]} 12. c3 {[%emt 0:01:42]} Re8 {[%emt 0:12:12]} 13. Bf4 {[%emt 0:14:25]} a6 {[%emt 0:21:51]} 14. Nbd2 {[%emt 0:04:52]} Qd7 {[%emt 0:01:32]} 15. Qb1 {[%emt 0:05:24]} Bd6 {[%emt 0:10:23]} 16. Ne5 {[%emt 0:16:23]} Qc7 {[%emt 0:03:03]} (16... Nxe5 {simplifies} 17. Bxe5 Qc7 18. Bxd6 Rxe1+ 19. Qxe1 Qxd6 20. Nf1 g6) 17. Nxg4 {[%emt 0:02:07]} Nxg4 {[%emt 0:05:52]} (17... Rxe1+ {simplifies} 18. Qxe1 Nxg4 19. Bxd6 Qxd6 20. g3 Nf6) 18. Bxd6 {[%emt 0:04:37]} Qxd6 {[%emt 0:00:23]} (18... Rxe1+ {simplifies} 19. Qxe1 Qxd6 20. g3 Nf6) 19. Nf3 {[%emt 0:01:13]} (19. Rxe8+ {simplifies} Rxe8 20. Nf3 Nf6 21. g3) 19... g6 {[%emt 0:02:30]} (19... Rxe1+ {simplifies} 20. Qxe1 Nf6 21. g3 g6) 20. b4 {[%emt 0:03:15]} Rxe1+ {[%emt 0:08:07]} 21. Qxe1 {[%emt 0:00:07]} Nf6 {[%emt 0:00:05]} 22. b5 {[%emt 0:01:14]} Re8 {[%emt 0:01:45]} 23. Qb1 {[%emt 0:00:25]} axb5 {[%emt 0:00:08]} 24. Qxb5 {[%emt 0:01:09]} Re7 {[%emt 0:00:38][%cal Be8e7,Be7d7,Bd7d4][%mdl 32]} 25. c4 {[%emt 0:08:55]} dxc4 {[%emt 0:03:12] The position is equal.} 26. Qxc4 {[%emt 0:00:06]} Rd7 {[%emt 0:04:08][%cal Rc6d4]} 27. Be2 {[%emt 0:00:32]} Nxd4 {[%emt 0:06:10]} 28. Nxd4 {[%emt 0:00:06]} Qxd4 {[%emt 0:00:06]} 29. Qxd4 {[%emt 0:00:03]} Rxd4 $11 {[%emt 0:00:11] KRB-KRN} 30. Rb1 {[%emt 0:00:08]} Ne4 {[%emt 0:04:00]} 31. Rxb7 {[%emt 0:01:37]} Rd2 {[%emt 0:00:52]} 32. Kf1 {[%emt 0:01:11]} Rc2 {[%emt 0:02:37] [#] Strongly threatening ...Rc1+.} 33. Kg1 $2 {[%emt 0:23:17][%mdl 40960] Weighted Error Value: White=0.04 (flawless) /Black=0.02 (flawless) .  Loses game:     	White=1     	---        Inaccurate:     	White=1     	---        OK:         	White=9     	Black=7      Best:        	White=2     	Black=1     . An unexpected result.} 1/2-1/2

[Event "1st Festival Galdar 2024"]
[Site "?"]
[Date "2024.09.03"]
[Round "2.4"]
[White "Perez Perez, Gabriel"]
[Black "Beerdsen, Thomas"]
[Result "0-1"]
[Annotator "TA"]
[ECO "B11"]
[WhiteElo "2192"]
[BlackElo "2509"]
[PlyCount "70"]
[EventDate "2024.09.02"]
[EventType "swiss"]
[SourceTitle "playchess.com"]
[Source "ChessBase"]
[SourceQuality "1"]
[TimeControl "5400+30"]

{[%evp 11,69,-1,-14,-2,-10,-6,-10,0,0,0,-19,-24,4,-1,14,0,0,0,0,0,17,10,24,12,25,0,13,0,0,0,0,0,0,-8,-8,-21,-22,-18,-19,-26,-11,-19,-14,-20,-22,-59,-58,-177,-175,-741,-729,-915,-504,-493,-499,-29985,-29986,-29986,-29987,-29999]} 1. e4 {[%emt 1:31:00]} c6 {[%emt 0:01:10]} 2. Nf3 {[%emt 0:00:00]} d5 {[%emt 0:00:07]} 3. Nc3 {[%emt 0:00:00]} Bg4 {[%emt 0:00:48]} 4. exd5 {[%emt 0:00:00]} cxd5 {[%emt 0:00:08]} 5. h3 {[%emt 0:00:00]} Bxf3 {[%emt 0:00:40]} 6. Qxf3 {[%emt 0:00:00]} e6 {[%emt 0:00:49]} 7. g3 {[%emt 0:00:00]} Nc6 {[%emt 0:01:20]} 8. Bg2 {[%emt 0:00:00]} Bc5 {[%emt 0:05:56]} 9. O-O {[%emt 0:00:00] The position is equal.} Nge7 {[%emt 0:02:11]} 10. Ne2 {[%emt 0:00:00]} O-O {[%emt 0:06:39]} 11. Qb3 {[%emt 0:00:00][%cal Oc2c3]} Qd7 {[%emt 0:09:05]} 12. c3 {[%emt 0:00:00]} Rab8 {[%emt 0:06:11]} 13. d4 {[%emt 0:00:00]} Bd6 {[%emt 0:00:05]} 14. a4 {[%emt 0:00:00]} Na5 {[%emt 0:02:58]} 15. Qd1 {[%emt 0:00:00]} Rfc8 {[%emt 0:01:08]} 16. Bf4 {[%emt 0:00:00]} Nc4 {[%emt 0:05:13]} 17. Ra2 {[%emt 0:00:00]} a5 {[%emt 0:09:13]} 18. b3 {[%emt 0:00:00]} Nb6 {[%emt 0:00:44]} 19. Qd3 {[%emt 0:00:00]} Bxf4 {[%emt 0:02:21]} 20. Nxf4 {[%emt 0:00:00]} Rc7 {[%emt 0:00:47]} 21. Rc1 {[%emt 0:00:00]} Rbc8 {[%emt 0:02:25]} 22. Qd2 {[%emt 0:00:00]} Qd6 {[%emt 0:01:19]} 23. Nd3 {[%emt 0:00:00]} Nd7 {[%emt 0:00:06]} 24. Qb2 {[%emt 0:03:44]} Nf5 {[%emt 0:03:15]} 25. Raa1 {[%emt 0:00:34]} h6 {[%emt 0:01:18]} 26. Ne1 {[%emt 0:03:16]} h5 {[%emt 0:08:34]} 27. h4 {[%emt 0:00:59]} Nf6 {[%emt 0:00:06]} (27... Qe7 {simplifies} 28. Rab1 g5 29. hxg5 Qxg5 30. c4 dxc4 31. Rxc4 h4) 28. Rc2 {[%emt 0:00:45]} (28. Nf3 {simplifies} Ne4 29. c4 dxc4 30. bxc4 Qb4 31. Qxb4 axb4 32. Bf1) 28... Ng4 {[%emt 0:01:23]} 29. Bf3 {[%emt 0:01:30]} ({Better is} 29. Bh3 $15) 29... Nxf2 $1 $19 {[%emt 0:00:51]} 30. Kxf2 {[%emt 0:01:10] [#]} (30. Rxf2 Rxc3 (30... Nxg3 31. Rc1 $11) 31. Rg2) 30... Qxg3+ {[%emt 0:00:08]} ({Weaker is} 30... Nxg3 31. Rd1 $11) 31. Ke2 {[%emt 0:00:02]} Qh2+ {[%emt 0:03:02]} 32. Kd3 {[%emt 0:01:05]} Qf4 {[%emt 0:00:19]} ({Less strong is} 32... Qxh4 33. Rcc1 $19) 33. Qc1 {[%emt 0:00:16] [#] Repels Qe3+} (33. Ke2 $19 Qh2+ (33... Qxh4 $2 34. Qc1 $19) (33... Qe3+ $2 34. Kd1 $19) 34. Kd3 Rxc3+ (34... Qxh4 $2 35. Rcc1 $19) 35. Qxc3 Rxc3+ 36. Kxc3 Qxh4 37. Rd2) 33... Rxc3+ $3 {[%emt 0:00:10][%mdl 512] Black mates.} 34. Rxc3 {[%emt 0:00:07]} Qxd4+ {[%emt 0:00:04]} 35. Ke2 {[%emt 0:00:05]} Ng3# {[%emt 0:00:04] Weighted Error Value: White=0.54/Black=0.19 (very precise) .  Mistake:       	White=3     	---        Inaccurate:     	White=1     	Black=1      OK:         	White=9     	Black=13     Best:        	---       	Black=1      Strong:       	---       	Black=1      Brilliant:      	---       	Black=1} 0-1

[Event "1st Festival Galdar 2024"]
[Site "?"]
[Date "2024.09.03"]
[Round "2.5"]
[White "Zwirs, Nico"]
[Black "Mai, Alexander Oliver"]
[Result "1-0"]
[Annotator "TA"]
[ECO "C54"]
[WhiteElo "2485"]
[BlackElo "2182"]
[PlyCount "65"]
[EventDate "2024.09.02"]
[EventType "swiss"]
[SourceTitle "playchess.com"]
[Source "ChessBase"]
[SourceQuality "1"]
[TimeControl "5400+30"]

{[%evp 22,64,15,19,22,12,15,15,12,0,7,18,22,0,31,25,28,30,44,43,41,37,31,18,178,195,198,189,197,191,780,395,776,596,1150,1106,1298,929,897,865,29977,29980,29998,29999,29999]} 1. e4 {[%emt 0:00:01]} e5 {[%emt 0:00:18]} 2. Nf3 {[%emt 0:01:32]} Nc6 {[%emt 0:00:13]} 3. Bc4 {[%emt 0:00:43]} Nf6 {[%emt 0:00:08]} 4. d3 {[%emt 0:00:32]} Bc5 {[%emt 0:00:18]} 5. O-O {[%emt 0:05:38]} a6 {[%emt 0:02:28]} 6. c3 {[%emt 0:00:18]} O-O {[%emt 0:00:58]} 7. Re1 {[%emt 0:06:29]} Ba7 {[%emt 0:01:13]} 8. h3 {[%emt 0:01:03]} h6 {[%emt 0:03:59]} 9. Nbd2 {[%emt 0:01:48][%cal Bb1d2,Bd2f1,Bf1g3][%mdl 32]} d6 {[%emt 0:01:05]} 10. Bb3 {[%emt 0:01:06]} Re8 {[%emt 0:00:53]} 11. Nf1 {[%emt 0:00:36]} Be6 {[%emt 0:00:18]} 12. Ng3 {[%emt 0:05:37]} d5 {[%emt 0:03:18]} 13. exd5 {[%emt 0:00:08]} Bxd5 {[%emt 0:00:23]} 14. Bc2 {[%emt 0:00:19]} Qd7 {[%emt 0:06:38] The position is equal.} 15. Be3 {[%emt 0:02:37]} Bxe3 {[%emt 0:05:00]} 16. Rxe3 {[%emt 0:00:07]} Rad8 {[%emt 0:03:02]} 17. Qe2 {[%emt 0:01:52][%cal Rf3e5]} Bxf3 {[%emt 0:02:52]} 18. Qxf3 {[%emt 0:01:12]} Nd5 {[%emt 0:04:20]} 19. Ree1 {[%emt 0:04:19]} Re6 {[%emt 0:12:36]} 20. Ne4 {[%emt 0:08:25]} b6 {[%emt 0:02:09] Inhibits Nc5.} 21. Rad1 {[%emt 0:02:29]} Rg6 {[%emt 0:11:57]} 22. Ng3 {[%emt 0:05:12] d4 would now be deadly.} Rg5 $2 {[%emt 0:04:52] This move loses the game for Black.} (22... Rf6 $11 23. Qe4 Re6) 23. h4 $18 {[%emt 0:14:14]} Rg4 {[%emt 0:01:44] [#]} 24. d4 $1 {[%emt 0:00:56][%mdl 512]} Rf4 {[%emt 0:13:35] [#]} (24... e4 25. Rxe4) 25. Qd3 {[%emt 0:00:32]} Qg4 $2 {[%emt 0:02:37]} (25... Nf6 26. dxe5 (26. Qxa6 exd4 27. Qd3 Qd5 $16) 26... Qxd3 27. Bxd3 (27. Rxd3 Re8 $16) 27... Ne8) 26. dxe5 {[%emt 0:05:49]} (26. Qxa6 exd4 27. Qb5 Qd7 $18) 26... Kf8 $2 {[%emt 0:02:30]} (26... g6 27. h5 (27. Qxa6 Kg7 $18) 27... Kf8 28. Qxa6 (28. hxg6 Ndb4 $18) 28... gxh5) 27. Bb3 {[%emt 0:09:43]} Ndb4 {[%emt 0:03:51]} 28. Qh7 {[%emt 0:04:29]} (28. cxb4 $2 {perishes.} Rxd3 29. Rxd3 Nd4 $19 (29... Qxh4 30. e6 $17) (29... Nxb4 $2 {too greedy.} 30. Rd8+ Ke7 31. Red1 $18) (29... Rxb4 $2 30. e6 $18)) 28... Rxf2 {[%emt 0:04:55]} 29. Kxf2 {[%emt 0:00:49] White wants to mate with Nf5.} Qf4+ {[%emt 0:00:47]} 30. Kg1 {[%emt 0:00:15] Nf5 would kill now.} Rxd1 {[%emt 0:00:33]} 31. Rxd1 {[%emt 0:01:03] White mates.} Nxe5 {[%emt 0:02:25]} 32. Qh8+ {[%emt 0:00:06]} Ke7 {[%emt 0:00:12]} 33. Qd8# {[%emt 0:00:04] Weighted Error Value: White=0.46/Black=0.67.  Mistake:       	---       	Black=3      Inaccurate:     	White=1     	Black=2      OK:         	White=8     	Black=4      Brilliant:      	White=1     	---} 1-0

[Event "1st Festival Galdar 2024"]
[Site "?"]
[Date "2024.09.03"]
[Round "2.6"]
[White "Marrero Rodriguez, Jorge"]
[Black "Fromm, Marius"]
[Result "1-0"]
[Annotator "TA"]
[ECO "D07"]
[WhiteElo "2169"]
[BlackElo "2477"]
[PlyCount "81"]
[EventDate "2024.09.02"]
[EventType "swiss"]
[SourceTitle "playchess.com"]
[Source "ChessBase"]
[SourceQuality "1"]
[TimeControl "5400+30"]

{[%evp 17,81,32,40,17,24,26,43,28,26,26,17,0,4,2,22,0,0,0,0,-14,0,-12,-7,-25,0,0,0,0,0,0,0,0,0,0,0,0,0,0,361,-477,-450,-455,-234,-221,-218,-197,-196,-230,-210,-210,-203,-260,-126,-159,-105,-97,0,-158,-156,-190,-116,-169,-164,-170,29998,29999]} 1. d4 {[%emt 0:00:06]} d5 {[%emt 0:00:59]} 2. c4 {[%emt 0:00:07]} Nc6 {[%emt 0:00:03]} 3. cxd5 {[%emt 0:00:10]} Qxd5 {[%emt 0:00:08]} 4. e3 {[%emt 0:00:03]} e5 {[%emt 0:00:19]} 5. Nc3 {[%emt 0:00:04]} Bb4 {[%emt 0:00:06]} 6. Bd2 {[%emt 0:00:03][%cal Bc1d2,Bd2c3,Bc3d4][%mdl 32]} Bxc3 {[%emt 0:00:07]} 7. Bxc3 {[%emt 0:00:03]} exd4 {[%emt 0:04:47]} 8. Ne2 {[%emt 0:00:15]} Nf6 {[%emt 0:00:17]} 9. Nxd4 {[%emt 0:00:07]} O-O {[%emt 0:00:19]} 10. Nxc6 {[%emt 0:00:14]} Qxc6 {[%emt 0:00:20]} 11. Rc1 {[%emt 0:00:49]} Re8 {[%emt 0:08:58]} 12. Bd4 {[%emt 0:00:34] White is slightly better.} Qd6 {[%emt 0:02:22]} 13. Be2 {[%emt 0:01:21]} b6 {[%emt 0:01:50]} 14. Bf3 {[%emt 0:05:59] Inhibits Bb7.} Ne4 {[%emt 0:01:48]} 15. O-O {[%emt 0:02:48]} Bf5 {[%emt 0:06:26]} 16. Qa4 {[%emt 0:04:35]} c5 {[%emt 0:06:17]} 17. Bc3 {[%emt 0:00:08]} Qe7 {[%emt 0:13:02]} 18. Bxe4 {[%emt 0:08:45]} Bxe4 {[%emt 0:00:41]} (18... Qxe4 {simplifies} 19. Qxe4 Rxe4 20. b3 Ree8) 19. Rcd1 {[%emt 0:00:06]} Qe6 {[%emt 0:06:04] Strongly threatening ...Qg6.} 20. b3 {[%emt 0:03:41]} b5 {[%emt 0:06:44]} 21. Qxb5 {[%emt 0:02:51][%cal Ob5d7]} Bxg2 $1 {[%emt 0:11:34]} 22. Kxg2 {[%emt 0:03:19]} Qg4+ {[%emt 0:00:04]} 23. Kh1 {[%emt 0:00:00]} Qf3+ $40 {[%emt 0:00:13][%mdl 128] Black mounts an attack.} 24. Kg1 {[%emt 0:00:06][%cal Ob5d7] Hoping for Qd7!} Qg4+ {[%emt 0:13:42]} (24... Re4 $5 25. Rfe1 $8 (25. Qxc5 $2 Rg4#) (25. h3 $2 Qxh3 26. Qd7 Rg4+ $19) 25... Rg4+ 26. Kf1 Rg2 $11) 25. Kh1 {[%emt 0:00:09]} Qf3+ {[%emt 0:00:03]} 26. Kg1 {[%emt 0:00:06][%cal Ob5d7] Threatens to win with Qd7!} Re4 {[%emt 0:00:24][%cal Re4g4]} 27. Rfe1 $1 {[%emt 0:00:14][%cal Og1f1] aiming for Kf1!} (27. Qxc5 $2 Rg4#) (27. h3 $2 Qxh3 28. Qd7 Rg4+ $19) 27... h5 $2 {[%emt 0:01:00][%mdl 8192]} (27... Rg4+ $11 {and Black has nothing to worry.} 28. Kf1 Rg2) 28. h3 $4 {[%emt 0:07:52][%mdl 8192]} (28. Qxc5 $18 {and all is fine.} Rg4+ 29. Kf1) 28... Qxh3 $19 {[%emt 0:01:57]} 29. f4 {[%emt 0:00:04][%cal Ob5f1]} Rxe3 {[%emt 0:02:18]} (29... Re6 $142 {( -> ...Rg6+)} 30. Qf1 (30. Qxc5 $2 Rg6+ $19) 30... Rg6+ 31. Kf2 Qh2+ 32. Kf3 Rg3+ 33. Ke4 Qxa2) 30. Rxe3 {[%emt 0:00:27]} Qxe3+ {[%emt 0:00:02]} 31. Kg2 {[%emt 0:00:11]} Qxc3 {[%emt 0:00:19][%mdl 4096] Endgame. KQR-KQR} 32. Qe2 {[%emt 0:00:05] Prevents Qc2} g6 {[%emt 0:02:25]} 33. f5 {[%emt 0:00:05]} Rf8 {[%emt 0:01:04]} ({Inferior is} 33... gxf5 34. Qxh5 Rc8 35. Rd5 $11 (35. Qxf5 $2 Rc6 $19)) 34. Rd6 {[%emt 0:01:33]} Kh7 {[%emt 0:07:13]} (34... gxf5 $2 {too greedy.} 35. Rd3 Qg7+ 36. Rg3 $18) (34... h4 $19 {is more deadly. ...Qg3+ would now be deadly.} 35. Rd3 Qf6 36. fxg6 fxg6) 35. Qe7 {[%emt 0:01:56]} Qb2+ {[%emt 0:01:23]} (35... Qg7 $142 $1 36. fxg6+ fxg6) 36. Kh3 {[%emt 0:00:28]} Qc3+ {[%emt 0:00:10]} (36... Qg7 $142 $1 37. Kh4 a6 (37... gxf5 38. Qg5 $17)) 37. Kg2 $1 $17 {[%emt 0:00:06] [#] Active counter play!} Qg7 {[%emt 0:00:01]} 38. f6 {[%emt 0:00:09] [#]} Qh6 {[%emt 0:00:52]} (38... Qg8 $1 $19 {White must now prevent ...Re8.} 39. Rd7 Kh6) 39. Rd7 {[%emt 0:00:16]} (39. Kh3 $17) 39... Qg5+ $19 {[%emt 0:00:39]} 40. Kh2 {[%emt 0:00:14]} Kg8 {[%emt 0:00:15][%mdl 8192] [#]} (40... Qh4+ $19 41. Kg2 Qg4+ 42. Kh2 Qf4+ 43. Kg2 Qb8) 41. Qxf8+ $3 {[%emt 0:00:07][%mdl 512] Weighted Error Value: White=0.33/Black=0.62.  Loses game:     	---       	Black=1      Missed win:     	White=1     	Black=1      Mistake:       	White=1     	Black=5      OK:         	White=8     	Black=13     Best:        	White=2     	Black=2      Strong:       	White=2     	Black=1      Brilliant:      	White=1     	---} 1-0